[Event "Late-Titled-Tuesday-Blitz-May-14-2024"]
[Site "Chess.com"]
[Date "2024.05.14"]
[Round "4"]
[White "HanSchut"]
[Black "Evan_Attaker"]
[Result "0-1"]
[WhiteElo "2379"]
[BlackElo "2658"]
[TimeControl "180+1"]
[EndTime "14:38:07 PDT"]
[Termination "Evan_Attaker won by resignation"]

1. e4 {[%clk 0:03:00.9]} 1... d6 {[%clk 0:03:00.4]} 2. d4 {[%clk 0:03:00.8]}
2... g6 {[%clk 0:03:00.9]} 3. Nc3 {[%clk 0:03:01.3]} 3... Bg7 {[%clk 0:03:01.5]}
4. f4 {[%clk 0:03:01.8]} 4... Nf6 {[%clk 0:03:01.9]} 5. Nf3 {[%clk 0:03:02.4]}
5... O-O {[%clk 0:03:02.5]} 6. Bd3 {[%clk 0:03:02.4]} 6... Na6 {[%clk
0:03:02.9]} 7. a3 {[%clk 0:03:00.9]} 7... c5 {[%clk 0:03:03.4]} 8. d5 {[%clk
0:03:00.9]} 8... Nc7 {[%clk 0:03:03.5]} 9. a4 {[%clk 0:03:00]} 9... a6 {[%clk
0:03:01.7]} 10. a5 {[%clk 0:02:52.8]} 10... Nb5 {[%clk 0:02:59.9]} 11. Bd2
{[%clk 0:02:47.4]} 11... Bd7 {[%clk 0:02:50.1]} 12. Qe2 {[%clk 0:02:43.1]} 12...
Nd4 {[%clk 0:02:39.2]} 13. Nxd4 {[%clk 0:02:38.2]} 13... cxd4 {[%clk 0:02:40.1]}
14. Na4 {[%clk 0:02:33]} 14... Bxa4 {[%clk 0:02:37]} 15. Rxa4 {[%clk 0:02:33.9]}
15... Nd7 {[%clk 0:02:37.1]} 16. b4 {[%clk 0:02:16.6]} 16... b5 {[%clk
0:02:32.4]} 17. Ra1 {[%clk 0:02:12.6]} 17... Rc8 {[%clk 0:02:24.7]} 18. O-O
{[%clk 0:02:12.3]} 18... Re8 {[%clk 0:02:23.3]} 19. Rae1 {[%clk 0:02:08.1]}
19... e6 {[%clk 0:02:23]} 20. dxe6 {[%clk 0:02:05.5]} 20... fxe6 {[%clk
0:02:14.5]} 21. Qf2 {[%clk 0:01:58.8]} 21... Rf8 {[%clk 0:02:10.9]} 22. Qg3
{[%clk 0:01:57.1]} 22... Qe7 {[%clk 0:01:56.5]} 23. f5 {[%clk 0:01:52.9]} 23...
Ne5 {[%clk 0:01:56.3]} 24. Bg5 {[%clk 0:01:42.4]} 24... Bf6 {[%clk 0:01:54.5]}
25. Bxf6 {[%clk 0:01:41.9]} 25... Rxf6 {[%clk 0:01:55.4]} 26. fxe6 {[%clk
0:01:27]} 26... Rcf8 {[%clk 0:01:52.1]} 27. Qh3 {[%clk 0:01:13.2]} 27... Qxe6
{[%clk 0:01:13.1]} 28. Qxe6+ {[%clk 0:01:07.4]} 28... Rxe6 {[%clk 0:01:14]} 29.
Rxf8+ {[%clk 0:01:07.6]} 29... Kxf8 {[%clk 0:01:14.9]} 30. Rf1+ {[%clk
0:00:58.3]} 30... Kg7 {[%clk 0:01:14.3]} 31. h3 {[%clk 0:00:58.7]} 31... Rf6
{[%clk 0:01:11.3]} 32. Rxf6 {[%clk 0:00:45.6]} 32... Kxf6 {[%clk 0:01:12.2]} 33.
Kf2 {[%clk 0:00:45.5]} 33... Nc6 {[%clk 0:01:11.6]} 34. e5+ {[%clk 0:00:31.3]}
34... Kxe5 {[%clk 0:01:10.3]} 35. Kf3 {[%clk 0:00:29.7]} 35... Nxb4 {[%clk
0:01:08.9]} 36. Be4 {[%clk 0:00:29.7]} 36... d5 {[%clk 0:01:09.5]} 37. Bd3
{[%clk 0:00:30.1]} 0-1

[Event "Late-Titled-Tuesday-Blitz-May-14-2024"]
[Site "Chess.com"]
[Date "2024.05.14"]
[Round "4"]
[White "LuckIsMySkill"]
[Black "AccioChess"]
[Result "0-1"]
[WhiteElo "2686"]
[BlackElo "2477"]
[TimeControl "180+1"]
[EndTime "14:38:09 PDT"]
[Termination "AccioChess won on time"]

1. Nf3 {[%clk 0:03:00.9]} 1... Nf6 {[%clk 0:02:53.6]} 2. g3 {[%clk 0:03:00.3]}
2... g6 {[%clk 0:02:54.1]} 3. Bg2 {[%clk 0:02:59.8]} 3... Bg7 {[%clk 0:02:55]}
4. O-O {[%clk 0:02:57.6]} 4... O-O {[%clk 0:02:55.9]} 5. d4 {[%clk 0:02:57.2]}
5... d5 {[%clk 0:02:55.8]} 6. b3 {[%clk 0:02:55.7]} 6... c5 {[%clk 0:02:54.8]}
7. Bb2 {[%clk 0:02:55.2]} 7... Ne4 {[%clk 0:02:55.1]} 8. Nbd2 {[%clk 0:02:53.6]}
8... Nc6 {[%clk 0:02:55.3]} 9. e3 {[%clk 0:02:52.5]} 9... cxd4 {[%clk
0:02:45.5]} 10. Nxd4 {[%clk 0:02:45.1]} 10... Nxd2 {[%clk 0:02:31.1]} 11. Qxd2
{[%clk 0:02:42.3]} 11... Nxd4 {[%clk 0:02:30.3]} 12. Bxd4 {[%clk 0:02:41.5]}
12... Bxd4 {[%clk 0:02:22.4]} 13. Qxd4 {[%clk 0:02:29.8]} 13... Be6 {[%clk
0:02:08.9]} 14. Rfd1 {[%clk 0:02:28.1]} 14... Qc7 {[%clk 0:02:05.4]} 15. Rac1
{[%clk 0:02:20.8]} 15... Rfd8 {[%clk 0:02:02.7]} 16. h4 {[%clk 0:02:17.6]} 16...
f6 {[%clk 0:02:01.9]} 17. h5 {[%clk 0:02:12.9]} 17... gxh5 {[%clk 0:01:54.8]}
18. Bf3 {[%clk 0:02:10.4]} 18... Bf7 {[%clk 0:01:54.7]} 19. Qh4 {[%clk
0:02:08.1]} 19... Qe5 {[%clk 0:01:53.7]} 20. Kg2 {[%clk 0:02:04]} 20... Rac8
{[%clk 0:01:48.8]} 21. c4 {[%clk 0:01:46.7]} 21... dxc4 {[%clk 0:01:45.8]} 22.
Rxd8+ {[%clk 0:01:47.6]} 22... Rxd8 {[%clk 0:01:45.5]} 23. bxc4 {[%clk
0:01:48.5]} 23... Rd2 {[%clk 0:01:39]} 24. g4 {[%clk 0:00:56.5]} 24... hxg4
{[%clk 0:01:32.9]} 25. Qxg4+ {[%clk 0:00:53.7]} 25... Bg6 {[%clk 0:01:29.7]} 26.
Re1 {[%clk 0:00:14.7]} 26... Kg7 {[%clk 0:01:27]} 27. Bxb7 {[%clk 0:00:12.4]}
27... Qb2 {[%clk 0:01:21.6]} 28. Bd5 {[%clk 0:00:12.3]} 28... Rxf2+ {[%clk
0:01:20.6]} 29. Kg1 {[%clk 0:00:10.7]} 29... Rf5 {[%clk 0:01:16.1]} 30. Rf1
{[%clk 0:00:05.2]} 30... Rg5 {[%clk 0:01:15.1]} 0-1

[Event "Late-Titled-Tuesday-Blitz-May-14-2024"]
[Site "Chess.com"]
[Date "2024.05.14"]
[Round "4"]
[White "jup1978"]
[Black "CarlosjPineror"]
[Result "0-1"]
[WhiteElo "2486"]
[BlackElo "2739"]
[TimeControl "180+1"]
[EndTime "14:38:10 PDT"]
[Termination "CarlosjPineror won by resignation"]

1. d4 {[%clk 0:03:00.9]} 1... Nf6 {[%clk 0:02:33.9]} 2. Nf3 {[%clk 0:03:00.7]}
2... d6 {[%clk 0:02:33.7]} 3. c4 {[%clk 0:02:59.1]} 3... g6 {[%clk 0:02:31.3]}
4. Nc3 {[%clk 0:02:59.1]} 4... Bf5 {[%clk 0:02:29.5]} 5. Nh4 {[%clk 0:02:55.9]}
5... Bd7 {[%clk 0:02:28.2]} 6. Qb3 {[%clk 0:02:55.6]} 6... b6 {[%clk 0:02:27.7]}
7. g3 {[%clk 0:02:54.4]} 7... Nc6 {[%clk 0:02:25.7]} 8. Qd1 {[%clk 0:02:51.7]}
8... Bg7 {[%clk 0:02:24.5]} 9. Bg2 {[%clk 0:02:51.8]} 9... O-O {[%clk
0:02:06.1]} 10. O-O {[%clk 0:02:52.2]} 10... Rb8 {[%clk 0:01:58.6]} 11. e4
{[%clk 0:02:47.3]} 11... e5 {[%clk 0:01:56.9]} 12. d5 {[%clk 0:02:37.1]} 12...
Nd4 {[%clk 0:01:55.5]} 13. Ne2 {[%clk 0:02:30.5]} 13... Nxe2+ {[%clk 0:01:28.2]}
14. Qxe2 {[%clk 0:02:30.2]} 14... Nh5 {[%clk 0:01:28.2]} 15. Nf3 {[%clk
0:02:14.2]} 15... Qe8 {[%clk 0:01:23]} 16. Be3 {[%clk 0:01:56]} 16... f5 {[%clk
0:01:20.2]} 17. Ng5 {[%clk 0:01:50.9]} 17... h6 {[%clk 0:01:17.8]} 18. Ne6
{[%clk 0:01:49.3]} 18... Bxe6 {[%clk 0:01:14.5]} 19. dxe6 {[%clk 0:01:50.2]}
19... f4 {[%clk 0:01:15.2]} 20. Bd2 {[%clk 0:01:45.8]} 20... Qxe6 {[%clk
0:01:15.7]} 21. g4 {[%clk 0:01:41.2]} 21... Nf6 {[%clk 0:01:12.6]} 22. f3 {[%clk
0:01:41.8]} 22... h5 {[%clk 0:01:09.5]} 23. h3 {[%clk 0:01:42.3]} 23... hxg4
{[%clk 0:01:07.7]} 24. hxg4 {[%clk 0:01:43.2]} 24... Nh7 {[%clk 0:01:04.9]} 25.
Kf2 {[%clk 0:01:43]} 25... Ng5 {[%clk 0:01:01.7]} 26. Rh1 {[%clk 0:01:43.3]}
26... b5 {[%clk 0:00:56.3]} 27. cxb5 {[%clk 0:01:38.2]} 27... d5 {[%clk
0:00:56.5]} 28. exd5 {[%clk 0:01:31.6]} 28... Qb6+ {[%clk 0:00:52]} 29. Kf1
{[%clk 0:01:29]} 29... e4 {[%clk 0:00:51.5]} 30. Qc4 {[%clk 0:01:13.9]} 30...
Qxb5 {[%clk 0:00:45.4]} 31. Qxb5 {[%clk 0:01:06.8]} 31... Rxb5 {[%clk
0:00:46.3]} 32. fxe4 {[%clk 0:01:07.2]} 32... Rxb2 {[%clk 0:00:41.5]} 33. Rd1
{[%clk 0:01:03.6]} 33... f3 {[%clk 0:00:36.2]} 34. Bxg5 {[%clk 0:01:02.9]} 34...
fxg2+ {[%clk 0:00:36]} 35. Kg1 {[%clk 0:00:59.4]} 35... gxh1=Q+ {[%clk
0:00:36.2]} 36. Kxh1 {[%clk 0:01:00.3]} 36... Rff2 {[%clk 0:00:32.5]} 0-1

[Event "Late-Titled-Tuesday-Blitz-May-14-2024"]
[Site "Chess.com"]
[Date "2024.05.14"]
[Round "4"]
[White "Eliwood44"]
[Black "Cipy77"]
[Result "0-1"]
[WhiteElo "2447"]
[BlackElo "2640"]
[TimeControl "180+1"]
[EndTime "14:38:13 PDT"]
[Termination "Cipy77 won by resignation"]

1. d4 {[%clk 0:02:59]} 1... Nf6 {[%clk 0:02:58.9]} 2. c4 {[%clk 0:02:37.6]} 2...
c5 {[%clk 0:02:56]} 3. d5 {[%clk 0:02:36.8]} 3... e6 {[%clk 0:02:56.5]} 4. Nc3
{[%clk 0:02:35.4]} 4... exd5 {[%clk 0:02:56.3]} 5. cxd5 {[%clk 0:02:34.3]} 5...
g6 {[%clk 0:02:56.1]} 6. Nf3 {[%clk 0:02:28.9]} 6... Bg7 {[%clk 0:02:56.1]} 7.
h3 {[%clk 0:02:29.5]} 7... O-O {[%clk 0:02:55.6]} 8. Bf4 {[%clk 0:02:28.9]} 8...
d6 {[%clk 0:02:54.5]} 9. e3 {[%clk 0:02:29.2]} 9... a6 {[%clk 0:02:54.2]} 10. a4
{[%clk 0:02:28.8]} 10... Re8 {[%clk 0:02:54.4]} 11. Be2 {[%clk 0:02:28.4]} 11...
Ne4 {[%clk 0:02:54.6]} 12. Nxe4 {[%clk 0:02:16.9]} 12... Rxe4 {[%clk 0:02:52.6]}
13. Nd2 {[%clk 0:02:17.3]} 13... Re8 {[%clk 0:02:37.5]} 14. O-O {[%clk
0:02:16.3]} 14... Bxb2 {[%clk 0:02:34.7]} 15. Nc4 {[%clk 0:02:15.2]} 15... Bxa1
{[%clk 0:02:24.3]} 16. Qxa1 {[%clk 0:02:16.1]} 16... Nd7 {[%clk 0:02:22.6]} 17.
Nxd6 {[%clk 0:02:14]} 17... Re7 {[%clk 0:02:14]} 18. Nc4 {[%clk 0:01:57.4]}
18... f6 {[%clk 0:02:06.1]} 19. d6 {[%clk 0:01:32.2]} 19... Rf7 {[%clk
0:02:03.8]} 20. Bf3 {[%clk 0:01:30.2]} 20... Nf8 {[%clk 0:02:00.3]} 21. a5
{[%clk 0:01:27.5]} 21... Be6 {[%clk 0:01:57.5]} 22. Nb6 {[%clk 0:01:27.4]} 22...
Rb8 {[%clk 0:01:58]} 23. Rd1 {[%clk 0:01:23.9]} 23... Nd7 {[%clk 0:01:57.2]} 24.
Qb2 {[%clk 0:01:20.7]} 24... Nxb6 {[%clk 0:01:56.4]} 25. axb6 {[%clk 0:01:21.6]}
25... Qd7 {[%clk 0:01:56.1]} 26. Rc1 {[%clk 0:01:15.3]} 26... Rc8 {[%clk
0:01:55.3]} 27. Qa3 {[%clk 0:01:15.2]} 27... Qb5 {[%clk 0:01:50.6]} 28. e4
{[%clk 0:01:02.6]} 28... c4 {[%clk 0:01:44.7]} 29. Be3 {[%clk 0:01:00.4]} 29...
Qb3 {[%clk 0:01:36.5]} 30. Qa5 {[%clk 0:00:39.3]} 30... Rd7 {[%clk 0:01:34.6]}
31. e5 {[%clk 0:00:37.8]} 31... Qb5 {[%clk 0:01:29.6]} 32. Qxb5 {[%clk
0:00:33.3]} 32... axb5 {[%clk 0:01:30.5]} 33. exf6 {[%clk 0:00:32.9]} 33... b4
{[%clk 0:01:29.3]} 34. Ra1 {[%clk 0:00:30.3]} 34... c3 {[%clk 0:01:25.4]} 35.
Ra7 {[%clk 0:00:17.4]} 35... b3 {[%clk 0:01:22.1]} 36. Bc1 {[%clk 0:00:18.3]}
36... b2 {[%clk 0:01:21.8]} 0-1

[Event "Late-Titled-Tuesday-Blitz-May-14-2024"]
[Site "Chess.com"]
[Date "2024.05.14"]
[Round "4"]
[White "temus_galaktionov"]
[Black "ATM622"]
[Result "1-0"]
[WhiteElo "2852"]
[BlackElo "2542"]
[TimeControl "180+1"]
[EndTime "14:38:14 PDT"]
[Termination "temus_galaktionov won by resignation"]

1. d4 {[%clk 0:02:57.3]} 1... d5 {[%clk 0:02:59.8]} 2. c4 {[%clk 0:02:56.9]}
2... e6 {[%clk 0:03:00]} 3. Nf3 {[%clk 0:02:56.8]} 3... Nf6 {[%clk 0:03:00]} 4.
Nc3 {[%clk 0:02:56.4]} 4... Be7 {[%clk 0:02:59.2]} 5. Bf4 {[%clk 0:02:56.5]}
5... O-O {[%clk 0:02:59.1]} 6. e3 {[%clk 0:02:57.1]} 6... dxc4 {[%clk
0:02:56.8]} 7. Bxc4 {[%clk 0:02:56.5]} 7... Nbd7 {[%clk 0:02:54.1]} 8. O-O
{[%clk 0:02:56.1]} 8... c5 {[%clk 0:02:53.6]} 9. dxc5 {[%clk 0:02:51.8]} 9...
Bxc5 {[%clk 0:02:50.2]} 10. Nb5 {[%clk 0:02:50.2]} 10... Nb6 {[%clk 0:02:43.8]}
11. Be2 {[%clk 0:02:48.8]} 11... Bd7 {[%clk 0:02:40.9]} 12. Nd6 {[%clk
0:02:44.1]} 12... Bc6 {[%clk 0:02:39]} 13. Rc1 {[%clk 0:02:43.8]} 13... Bxd6
{[%clk 0:02:34]} 14. Bxd6 {[%clk 0:02:44.7]} 14... Re8 {[%clk 0:02:34.5]} 15. b3
{[%clk 0:02:37.1]} 15... Ne4 {[%clk 0:02:32.9]} 16. Ba3 {[%clk 0:02:36.5]} 16...
Qxd1 {[%clk 0:02:27.6]} 17. Rfxd1 {[%clk 0:02:37.4]} 17... Red8 {[%clk
0:02:27.8]} 18. Nd4 {[%clk 0:02:37.7]} 18... Bd7 {[%clk 0:02:20.7]} 19. f3
{[%clk 0:02:38]} 19... Nf6 {[%clk 0:02:19.6]} 20. e4 {[%clk 0:02:36.5]} 20... e5
{[%clk 0:02:16.4]} 21. Nb5 {[%clk 0:02:34.9]} 21... Bxb5 {[%clk 0:02:12.6]} 22.
Bxb5 {[%clk 0:02:35.8]} 22... a6 {[%clk 0:02:10.8]} 23. Be2 {[%clk 0:02:34.2]}
23... Rdc8 {[%clk 0:01:57.4]} 24. Bd6 {[%clk 0:02:30.1]} 24... Nbd7 {[%clk
0:01:53.3]} 25. Kf2 {[%clk 0:02:29.2]} 25... h6 {[%clk 0:01:49]} 26. Ke3 {[%clk
0:02:28.7]} 26... Ne8 {[%clk 0:01:40.5]} 27. Ba3 {[%clk 0:02:26.8]} 27... Nef6
{[%clk 0:01:40.4]} 28. g3 {[%clk 0:02:22]} 28... b5 {[%clk 0:01:33.3]} 29. Bd6
{[%clk 0:02:21.3]} 29... Ne8 {[%clk 0:01:31.7]} 30. Be7 {[%clk 0:02:21.1]} 30...
Nef6 {[%clk 0:01:29.6]} 31. a4 {[%clk 0:02:20.9]} 31... bxa4 {[%clk 0:01:27.5]}
32. bxa4 {[%clk 0:02:21.8]} 32... Re8 {[%clk 0:01:25.9]} 33. Bd6 {[%clk
0:02:20.7]} 33... a5 {[%clk 0:01:21.5]} 34. Bb5 {[%clk 0:02:17.3]} 34... Rec8
{[%clk 0:01:18.7]} 35. Kd2 {[%clk 0:02:11.9]} 35... g5 {[%clk 0:01:09.2]} 36.
Rxc8+ {[%clk 0:02:11.1]} 36... Rxc8 {[%clk 0:01:09.1]} 37. Rc1 {[%clk
0:02:11.7]} 37... Rxc1 {[%clk 0:01:03.9]} 38. Kxc1 {[%clk 0:02:12.6]} 38... g4
{[%clk 0:01:02.9]} 39. fxg4 {[%clk 0:02:08.6]} 39... Nxe4 {[%clk 0:01:02.8]} 40.
Bc7 {[%clk 0:02:03.5]} 40... Ndc5 {[%clk 0:01:03]} 41. Kc2 {[%clk 0:02:03.5]}
41... Nf2 {[%clk 0:00:44.6]} 42. Bb6 {[%clk 0:01:58.8]} 42... Nfe4 {[%clk
0:00:38.4]} 43. Bxa5 {[%clk 0:01:57.9]} 43... Kg7 {[%clk 0:00:33.1]} 44. Bb6
{[%clk 0:01:57.3]} 44... Nxa4 {[%clk 0:00:28.9]} 45. Bxa4 {[%clk 0:01:58.2]}
45... Kg6 {[%clk 0:00:27]} 46. Bd7 {[%clk 0:01:57.3]} 46... Nd6 {[%clk
0:00:19.4]} 47. Kd3 {[%clk 0:01:55.9]} 47... f5 {[%clk 0:00:15.3]} 48. gxf5+
{[%clk 0:01:55]} 48... Nxf5 {[%clk 0:00:15.4]} 49. Bxf5+ {[%clk 0:01:52.3]}
49... Kxf5 {[%clk 0:00:16.3]} 50. h3 {[%clk 0:01:49.3]} 50... h5 {[%clk
0:00:16]} 51. Bd8 {[%clk 0:01:48.8]} 1-0

[Event "Late-Titled-Tuesday-Blitz-May-14-2024"]
[Site "Chess.com"]
[Date "2024.05.14"]
[Round "4"]
[White "Klendi"]
[Black "The_Machine04"]
[Result "0-1"]
[WhiteElo "2408"]
[BlackElo "2659"]
[TimeControl "180+1"]
[EndTime "14:38:14 PDT"]
[Termination "The_Machine04 won on time"]

1. e4 {[%clk 0:02:59]} 1... d6 {[%clk 0:03:00.3]} 2. d4 {[%clk 0:02:58.9]} 2...
Nf6 {[%clk 0:02:59.6]} 3. Nc3 {[%clk 0:02:58.6]} 3... e5 {[%clk 0:03:00.5]} 4.
Nf3 {[%clk 0:02:56.7]} 4... Nbd7 {[%clk 0:03:00.4]} 5. g4 {[%clk 0:02:56.6]}
5... d5 {[%clk 0:02:59.7]} 6. dxe5 {[%clk 0:02:46.9]} 6... Nxe4 {[%clk
0:02:58.4]} 7. Qxd5 {[%clk 0:02:37.4]} 7... Nxc3 {[%clk 0:02:57.1]} 8. bxc3
{[%clk 0:02:37.2]} 8... c6 {[%clk 0:02:58]} 9. Qe4 {[%clk 0:02:29.5]} 9... Nc5
{[%clk 0:02:57.5]} 10. Qe3 {[%clk 0:02:27.9]} 10... Bxg4 {[%clk 0:02:57.1]} 11.
Rg1 {[%clk 0:02:23.8]} 11... Bxf3 {[%clk 0:02:49.3]} 12. Qxf3 {[%clk 0:02:22.8]}
12... Qc7 {[%clk 0:02:50.2]} 13. Bf4 {[%clk 0:02:20.7]} 13... Ne6 {[%clk
0:02:49.3]} 14. Bg3 {[%clk 0:02:21.3]} 14... O-O-O {[%clk 0:02:49.2]} 15. Bd3
{[%clk 0:02:18.4]} 15... h5 {[%clk 0:02:46.5]} 16. h4 {[%clk 0:02:18.5]} 16...
Bc5 {[%clk 0:02:43.3]} 17. Kf1 {[%clk 0:02:10.7]} 17... g5 {[%clk 0:02:40]} 18.
hxg5 {[%clk 0:02:09.2]} 18... Nxg5 {[%clk 0:02:37.4]} 19. Qf5+ {[%clk
0:01:53.9]} 19... Ne6 {[%clk 0:02:37.4]} 20. Rh1 {[%clk 0:01:50.8]} 20... Kb8
{[%clk 0:02:24.3]} 21. Rxh5 {[%clk 0:01:49.3]} 21... Ng7 {[%clk 0:02:24.2]} 22.
Rxh8 {[%clk 0:01:11.5]} 22... Nxf5 {[%clk 0:02:23.2]} 23. Rxd8+ {[%clk
0:01:10.8]} 23... Qxd8 {[%clk 0:02:24.1]} 24. Bxf5 {[%clk 0:01:08]} 24... Ka8
{[%clk 0:02:22]} 25. Ke2 {[%clk 0:01:06.2]} 25... Qa5 {[%clk 0:02:12.7]} 26. Rh1
{[%clk 0:00:59.9]} 26... a6 {[%clk 0:02:09.4]} 27. Rh7 {[%clk 0:00:34.1]} 27...
Qxa2 {[%clk 0:02:08.1]} 28. Bd3 {[%clk 0:00:33.5]} 28... a5 {[%clk 0:02:00.5]}
29. c4 {[%clk 0:00:33.6]} 29... a4 {[%clk 0:01:58.9]} 30. Rxf7 {[%clk
0:00:33.7]} 30... a3 {[%clk 0:01:58.3]} 31. e6 {[%clk 0:00:33.6]} 31... Qb2
{[%clk 0:01:56]} 32. e7 {[%clk 0:00:17.4]} 32... Bxe7 {[%clk 0:01:55.8]} 33.
Rxe7 {[%clk 0:00:18.3]} 33... a2 {[%clk 0:01:55.7]} 34. Bc7 {[%clk 0:00:08.4]}
34... a1=Q {[%clk 0:01:47]} 35. c5 {[%clk 0:00:08.4]} 35... Qh8 {[%clk
0:01:41.6]} 36. Bb6 {[%clk 0:00:06.8]} 36... Qae5+ {[%clk 0:01:37.7]} 37. Rxe5
{[%clk 0:00:05.3]} 37... Qxe5+ {[%clk 0:01:38.6]} 38. Kd2 {[%clk 0:00:04.1]}
38... Qf4+ {[%clk 0:01:38.1]} 39. Ke2 {[%clk 0:00:04.3]} 39... Kb8 {[%clk
0:01:38.4]} 40. Kf1 {[%clk 0:00:03.9]} 40... Kc8 {[%clk 0:01:38.5]} 41. Ke2
{[%clk 0:00:03.6]} 41... Kd7 {[%clk 0:01:38.8]} 0-1

[Event "Late-Titled-Tuesday-Blitz-May-14-2024"]
[Site "Chess.com"]
[Date "2024.05.14"]
[Round "4"]
[White "Brown_Mamba24"]
[Black "Indefatigable11"]
[Result "1-0"]
[WhiteElo "2609"]
[BlackElo "2386"]
[TimeControl "180+1"]
[EndTime "14:38:16 PDT"]
[Termination "Brown_Mamba24 won by resignation"]

1. Nc3 {[%clk 0:03:00.9]} 1... e5 {[%clk 0:02:56.7]} 2. f3 {[%clk 0:02:54]} 2...
d5 {[%clk 0:02:55.8]} 3. d4 {[%clk 0:02:53.3]} 3... exd4 {[%clk 0:02:54.2]} 4.
Qxd4 {[%clk 0:02:54.2]} 4... Nf6 {[%clk 0:02:54]} 5. Bg5 {[%clk 0:02:51]} 5...
Be7 {[%clk 0:02:52.7]} 6. O-O-O {[%clk 0:02:49.8]} 6... Nc6 {[%clk 0:02:47.9]}
7. Qa4 {[%clk 0:02:49]} 7... Be6 {[%clk 0:02:15.7]} 8. e4 {[%clk 0:02:40.5]}
8... d4 {[%clk 0:02:14.9]} 9. Bb5 {[%clk 0:02:39.9]} 9... O-O {[%clk 0:01:57.8]}
10. Bxc6 {[%clk 0:02:37.3]} 10... bxc6 {[%clk 0:01:57.1]} 11. Rxd4 {[%clk
0:02:35.8]} 11... Qc8 {[%clk 0:01:55.9]} 12. Qxc6 {[%clk 0:02:31.7]} 12... Rb8
{[%clk 0:01:55.7]} 13. Nge2 {[%clk 0:02:28.7]} 13... Rb6 {[%clk 0:01:08]} 14.
Qa4 {[%clk 0:02:26.3]} 14... Qb7 {[%clk 0:01:08]} 15. b3 {[%clk 0:02:04.6]}
15... Ra6 {[%clk 0:01:02.2]} 16. Qb5 {[%clk 0:02:03.9]} 16... Rb6 {[%clk
0:00:57.4]} 17. Qd3 {[%clk 0:02:03.4]} 17... a5 {[%clk 0:00:53.3]} 18. Nf4
{[%clk 0:01:57.3]} 18... c5 {[%clk 0:00:39.8]} 19. Nxe6 {[%clk 0:01:54.3]} 19...
cxd4 {[%clk 0:00:38.2]} 20. Nxd4 {[%clk 0:01:52]} 20... Rd8 {[%clk 0:00:33.6]}
21. Rd1 {[%clk 0:01:47.6]} 21... Ba3+ {[%clk 0:00:26.6]} 22. Kb1 {[%clk
0:01:47.4]} 22... Bc5 {[%clk 0:00:24.8]} 23. Bxf6 {[%clk 0:01:44.6]} 23... Rxf6
{[%clk 0:00:24.1]} 24. Nd5 {[%clk 0:01:44.5]} 24... Rfd6 {[%clk 0:00:19.6]} 25.
Nf5 {[%clk 0:01:44.2]} 25... R6d7 {[%clk 0:00:18.8]} 26. Qc3 {[%clk 0:01:38.2]}
26... Bf8 {[%clk 0:00:17.8]} 27. Qxa5 {[%clk 0:01:35.3]} 27... Qc6 {[%clk
0:00:11.4]} 28. Nde7+ {[%clk 0:01:28.7]} 28... Bxe7 {[%clk 0:00:09.5]} 29. Nxe7+
{[%clk 0:01:27.2]} 29... Rxe7 {[%clk 0:00:10]} 30. Rxd8+ {[%clk 0:01:23]} 30...
Re8 {[%clk 0:00:10.1]} 31. Qb6 {[%clk 0:01:15.1]} 31... Qa8 {[%clk 0:00:08.5]}
32. Rxa8 {[%clk 0:01:10.5]} 1-0

[Event "Late-Titled-Tuesday-Blitz-May-14-2024"]
[Site "Chess.com"]
[Date "2024.05.14"]
[Round "4"]
[White "becemix"]
[Black "DrVelja"]
[Result "0-1"]
[WhiteElo "2598"]
[BlackElo "2902"]
[TimeControl "180+1"]
[EndTime "14:38:17 PDT"]
[Termination "DrVelja won on time"]

1. e4 {[%clk 0:03:00.9]} 1... c5 {[%clk 0:03:00.1]} 2. c3 {[%clk 0:02:59.3]}
2... d5 {[%clk 0:02:58.7]} 3. exd5 {[%clk 0:02:59.2]} 3... Nf6 {[%clk
0:02:56.8]} 4. d4 {[%clk 0:02:59.5]} 4... cxd4 {[%clk 0:02:55.8]} 5. cxd4 {[%clk
0:02:59.2]} 5... Nxd5 {[%clk 0:02:55.2]} 6. Nc3 {[%clk 0:02:51.7]} 6... Nc6
{[%clk 0:02:54.9]} 7. Nf3 {[%clk 0:02:40.5]} 7... Bg4 {[%clk 0:02:51.6]} 8. Be2
{[%clk 0:02:37.3]} 8... e6 {[%clk 0:02:51.7]} 9. O-O {[%clk 0:02:37.3]} 9... Be7
{[%clk 0:02:50]} 10. h3 {[%clk 0:02:37.2]} 10... Bf5 {[%clk 0:02:48.9]} 11. Qb3
{[%clk 0:02:29]} 11... O-O {[%clk 0:02:41.3]} 12. Nxd5 {[%clk 0:02:26.2]} 12...
exd5 {[%clk 0:02:42.2]} 13. Be3 {[%clk 0:02:14.9]} 13... Qd7 {[%clk 0:02:34.6]}
14. Ne5 {[%clk 0:01:55.7]} 14... Nxe5 {[%clk 0:02:33.2]} 15. dxe5 {[%clk
0:01:56.6]} 15... d4 {[%clk 0:02:31.1]} 16. Rfd1 {[%clk 0:01:54.2]} 16... Bc5
{[%clk 0:02:31.6]} 17. Rac1 {[%clk 0:01:51]} 17... Rac8 {[%clk 0:02:29.6]} 18.
Rxc5 {[%clk 0:01:27.6]} 18... Rxc5 {[%clk 0:02:28.3]} 19. Bxd4 {[%clk
0:01:27.7]} 19... Rd5 {[%clk 0:02:27.7]} 20. Bxa7 {[%clk 0:01:24.2]} 20... Rxd1+
{[%clk 0:02:26.5]} 21. Qxd1 {[%clk 0:01:19.1]} 21... Qxd1+ {[%clk 0:02:25.7]}
22. Bxd1 {[%clk 0:01:20]} 22... Ra8 {[%clk 0:02:26.2]} 23. Bd4 {[%clk
0:01:17.2]} 23... Rxa2 {[%clk 0:02:27.1]} 24. Bf3 {[%clk 0:01:10.8]} 24... Ra4
{[%clk 0:02:19.5]} 25. Bc3 {[%clk 0:01:05.1]} 25... b5 {[%clk 0:02:15.8]} 26.
Bc6 {[%clk 0:01:03]} 26... Ra1+ {[%clk 0:02:07.4]} 27. Kh2 {[%clk 0:01:02.6]}
27... Bd3 {[%clk 0:02:08.3]} 28. Bd5 {[%clk 0:00:40]} 28... Bc4 {[%clk 0:02:08]}
29. b3 {[%clk 0:00:39]} 29... Rc1 {[%clk 0:01:57.8]} 30. bxc4 {[%clk 0:00:38.3]}
30... Rxc3 {[%clk 0:01:58]} 31. cxb5 {[%clk 0:00:36.9]} 31... Rc5 {[%clk
0:01:58.9]} 32. Bc6 {[%clk 0:00:34.8]} 32... Rxe5 {[%clk 0:01:57.3]} 33. b6
{[%clk 0:00:34.9]} 33... Re2 {[%clk 0:01:53.8]} 34. b7 {[%clk 0:00:33.5]} 34...
Rb2 {[%clk 0:01:54.7]} 35. Kg3 {[%clk 0:00:26.3]} 35... Kf8 {[%clk 0:01:55.1]}
36. h4 {[%clk 0:00:22.5]} 36... Ke7 {[%clk 0:01:54.4]} 37. Bf3 {[%clk
0:00:19.2]} 37... Rb4 {[%clk 0:01:52.8]} 38. Kh3 {[%clk 0:00:17.3]} 38... f5
{[%clk 0:01:52.3]} 39. g3 {[%clk 0:00:15.3]} 39... g6 {[%clk 0:01:49.3]} 40. Kg2
{[%clk 0:00:15.6]} 40... Kd6 {[%clk 0:01:48.7]} 41. Kh3 {[%clk 0:00:13.6]} 41...
h6 {[%clk 0:01:49.2]} 42. Kg2 {[%clk 0:00:13.9]} 42... g5 {[%clk 0:01:49.4]} 43.
hxg5 {[%clk 0:00:13.6]} 43... hxg5 {[%clk 0:01:50.3]} 44. g4 {[%clk 0:00:14.1]}
44... fxg4 {[%clk 0:01:50.1]} 45. Bxg4 {[%clk 0:00:14.1]} 45... Rxg4+ {[%clk
0:01:49.8]} 0-1